[Event "Late-Titled-Tuesday-Blitz-February-13-2024"]
[Site "Chess.com"]
[Date "2024.02.13"]
[Round "6"]
[White "HajiyevKanan"]
[Black "Helenita13"]
[Result "1-0"]
[WhiteElo "2475"]
[BlackElo "2322"]
[TimeControl "180+1"]
[EndTime "15:05:02 PST"]
[Termination "HajiyevKanan won by checkmate"]

1. d4 {[%clk 0:03:00.9]} 1... Nf6 {[%clk 0:02:55.5]} 2. Nf3 {[%clk 0:03:01.8]}
2... e6 {[%clk 0:02:51]} 3. c4 {[%clk 0:03:02.7]} 3... Bb4+ {[%clk 0:02:50.8]}
4. Nc3 {[%clk 0:03:03.6]} 4... O-O {[%clk 0:02:50.5]} 5. Qb3 {[%clk 0:03:04.2]}
5... Bxc3+ {[%clk 0:02:49.5]} 6. Qxc3 {[%clk 0:03:05.1]} 6... d5 {[%clk
0:02:49.5]} 7. cxd5 {[%clk 0:03:05.2]} 7... exd5 {[%clk 0:02:48.6]} 8. Bg5
{[%clk 0:03:04.8]} 8... c6 {[%clk 0:02:48.5]} 9. e3 {[%clk 0:03:05.2]} 9... Bg4
{[%clk 0:02:48.6]} 10. Ne5 {[%clk 0:03:05.1]} 10... Bf5 {[%clk 0:02:47.7]} 11.
g4 {[%clk 0:03:03.7]} 11... Bg6 {[%clk 0:02:46.4]} 12. h4 {[%clk 0:03:04.4]}
12... h6 {[%clk 0:02:38]} 13. h5 {[%clk 0:02:55.5]} 13... Bh7 {[%clk 0:02:34.2]}
14. Bh4 {[%clk 0:02:55.9]} 14... Nbd7 {[%clk 0:02:31.5]} 15. Be2 {[%clk
0:02:50.5]} 15... Re8 {[%clk 0:02:27.5]} 16. g5 {[%clk 0:02:41]} 16... hxg5
{[%clk 0:02:20]} 17. Bxg5 {[%clk 0:02:41.9]} 17... Nxe5 {[%clk 0:02:20]} 18.
dxe5 {[%clk 0:02:39.7]} 18... Ne4 {[%clk 0:02:17.9]} 19. Bxd8 {[%clk 0:02:33.1]}
19... Nxc3 {[%clk 0:02:18]} 20. bxc3 {[%clk 0:02:25.9]} 20... Raxd8 {[%clk
0:02:16.3]} 21. f4 {[%clk 0:02:26.5]} 21... Be4 {[%clk 0:02:13.3]} 22. Rg1
{[%clk 0:02:25.8]} 22... Kh7 {[%clk 0:02:04.3]} 23. Kd2 {[%clk 0:02:24.7]} 23...
c5 {[%clk 0:02:01.3]} 24. Bd3 {[%clk 0:02:19.6]} 24... b6 {[%clk 0:01:51.2]} 25.
a4 {[%clk 0:02:18.3]} 25... Re6 {[%clk 0:01:47.8]} 26. Rg5 {[%clk 0:02:17.8]}
26... f6 {[%clk 0:01:42.3]} 27. exf6 {[%clk 0:02:16.1]} 27... Rxf6 {[%clk
0:01:43.2]} 28. Rag1 {[%clk 0:02:15.1]} 28... Rd7 {[%clk 0:01:41.7]} 29. Re5
{[%clk 0:02:04.1]} 29... Kh6 {[%clk 0:01:12.1]} 30. Rgg5 {[%clk 0:02:03.9]}
30... Bf3 {[%clk 0:01:04.8]} 31. Bg6 {[%clk 0:01:44.6]} 31... d4 {[%clk
0:00:56.6]} 32. Re8 {[%clk 0:01:30.3]} 32... dxc3+ {[%clk 0:00:49.2]} 33. Kxc3
{[%clk 0:01:27.6]} 33... Rxg6 {[%clk 0:00:44.3]} 34. Rh8# {[%clk 0:01:24.1]} 1-0

[Event "Late-Titled-Tuesday-Blitz-February-13-2024"]
[Site "Chess.com"]
[Date "2024.02.13"]
[Round "6"]
[White "martinmena"]
[Black "szachmistrz2500"]
[Result "1-0"]
[WhiteElo "2173"]
[BlackElo "2447"]
[TimeControl "180+1"]
[EndTime "15:05:15 PST"]
[Termination "martinmena won by checkmate"]

1. c4 {[%clk 0:03:00.9]} 1... c5 {[%clk 0:02:56.3]} 2. Nc3 {[%clk 0:02:59.3]}
2... g6 {[%clk 0:02:55.9]} 3. g3 {[%clk 0:02:59.7]} 3... Bg7 {[%clk 0:02:55.9]}
4. Bg2 {[%clk 0:03:00.4]} 4... Nc6 {[%clk 0:02:56.2]} 5. e4 {[%clk 0:03:00.1]}
5... e6 {[%clk 0:02:53]} 6. Nge2 {[%clk 0:03:00.1]} 6... Nge7 {[%clk 0:02:52.6]}
7. O-O {[%clk 0:03:00.7]} 7... a6 {[%clk 0:02:52.3]} 8. d3 {[%clk 0:03:00.7]}
8... Rb8 {[%clk 0:02:51.3]} 9. Be3 {[%clk 0:03:01.1]} 9... Nd4 {[%clk
0:02:51.1]} 10. a4 {[%clk 0:02:54.3]} 10... Nec6 {[%clk 0:02:48.8]} 11. f4
{[%clk 0:02:48.3]} 11... d6 {[%clk 0:02:46.7]} 12. h3 {[%clk 0:02:37.7]} 12...
O-O {[%clk 0:02:45.6]} 13. g4 {[%clk 0:02:30.7]} 13... f5 {[%clk 0:02:45.5]} 14.
exf5 {[%clk 0:02:28.8]} 14... gxf5 {[%clk 0:02:44.2]} 15. Ng3 {[%clk 0:02:16.4]}
15... Bd7 {[%clk 0:02:36.3]} 16. gxf5 {[%clk 0:02:00.3]} 16... Nxf5 {[%clk
0:02:34.1]} 17. Nxf5 {[%clk 0:02:00.6]} 17... Rxf5 {[%clk 0:02:32.5]} 18. Be4
{[%clk 0:01:58.3]} 18... Rf6 {[%clk 0:02:19.5]} 19. Kh2 {[%clk 0:01:43.7]} 19...
Rh6 {[%clk 0:02:10.4]} 20. Rg1 {[%clk 0:01:29.1]} 20... Kh8 {[%clk 0:02:08.3]}
21. Qg4 {[%clk 0:01:25.4]} 21... Qf6 {[%clk 0:02:00.9]} 22. Rg2 {[%clk
0:00:46.7]} 22... Rh4 {[%clk 0:01:50.8]} 23. Qg3 {[%clk 0:00:45.1]} 23... Bh6
{[%clk 0:01:45.6]} 24. Rag1 {[%clk 0:00:42.4]} 24... Bxf4 {[%clk 0:01:44.5]} 25.
Bxf4 {[%clk 0:00:31.6]} 25... Qxf4 {[%clk 0:01:44.4]} 26. Qxf4 {[%clk
0:00:28.9]} 26... Rxf4 {[%clk 0:01:45.3]} 27. Rg7 {[%clk 0:00:22.1]} 27... Rxe4
{[%clk 0:01:44.2]} 28. Nxe4 {[%clk 0:00:21.2]} 28... Ne5 {[%clk 0:01:40]} 29.
Nf6 {[%clk 0:00:18.5]} 29... Nf3+ {[%clk 0:01:37.5]} 30. Kh1 {[%clk 0:00:17.8]}
30... Nxg1 {[%clk 0:01:31.9]} 31. Rxh7# {[%clk 0:00:18.1]} 1-0

[Event "Late-Titled-Tuesday-Blitz-February-13-2024"]
[Site "Chess.com"]
[Date "2024.02.13"]
[Round "6"]
[White "Kotlyar_K"]
[Black "johnmez"]
[Result "1-0"]
[WhiteElo "2516"]
[BlackElo "2290"]
[TimeControl "180+1"]
[EndTime "15:05:16 PST"]
[Termination "Kotlyar_K won by resignation"]

1. d4 {[%clk 0:02:55.1]} 1... Nf6 {[%clk 0:02:59.1]} 2. c4 {[%clk 0:02:55.2]}
2... c5 {[%clk 0:02:59.6]} 3. d5 {[%clk 0:02:53.4]} 3... e6 {[%clk 0:03:00.1]}
4. Nc3 {[%clk 0:02:50.2]} 4... exd5 {[%clk 0:03:00.4]} 5. cxd5 {[%clk
0:02:51.1]} 5... d6 {[%clk 0:03:01]} 6. Nf3 {[%clk 0:02:51.9]} 6... g6 {[%clk
0:03:01.4]} 7. Nd2 {[%clk 0:02:51.8]} 7... Bg7 {[%clk 0:03:01.1]} 8. e4 {[%clk
0:02:51.7]} 8... O-O {[%clk 0:03:00.9]} 9. Be2 {[%clk 0:02:36.2]} 9... Na6
{[%clk 0:02:52.5]} 10. O-O {[%clk 0:02:33.9]} 10... Nc7 {[%clk 0:02:52]} 11. a4
{[%clk 0:02:32.4]} 11... Rb8 {[%clk 0:02:34.6]} 12. Nc4 {[%clk 0:02:28.2]} 12...
a6 {[%clk 0:02:31.9]} 13. Bf4 {[%clk 0:02:27.4]} 13... Nfe8 {[%clk 0:02:31.7]}
14. a5 {[%clk 0:02:25.1]} 14... f5 {[%clk 0:02:21.5]} 15. e5 {[%clk 0:02:25]}
15... Nb5 {[%clk 0:01:51.1]} 16. Nxb5 {[%clk 0:02:18.7]} 16... axb5 {[%clk
0:01:52]} 17. Nxd6 {[%clk 0:02:19]} 17... Nxd6 {[%clk 0:01:51.8]} 18. exd6
{[%clk 0:02:19.9]} 18... g5 {[%clk 0:01:51.4]} 19. Be3 {[%clk 0:02:18.5]} 19...
Qxd6 {[%clk 0:01:46.4]} 20. Bxg5 {[%clk 0:02:10.8]} 20... Bxb2 {[%clk
0:01:23.6]} 21. Bxb5 {[%clk 0:02:00.7]} 21... Bxa1 {[%clk 0:01:16.6]} 22. Qxa1
{[%clk 0:02:01.6]} 22... f4 {[%clk 0:01:00.3]} 23. Re1 {[%clk 0:01:56.4]} 23...
Qg6 {[%clk 0:00:46.5]} 24. Qe5 {[%clk 0:01:38.5]} 24... f3 {[%clk 0:00:17.2]}
25. d6 {[%clk 0:01:35.3]} 25... fxg2 {[%clk 0:00:15.4]} 26. Bc4+ {[%clk
0:01:34.9]} 26... Rf7 {[%clk 0:00:11.6]} 1-0

[Event "Late-Titled-Tuesday-Blitz-February-13-2024"]
[Site "Chess.com"]
[Date "2024.02.13"]
[Round "6"]
[White "saikrishnaReturns"]
[Black "ViIIagra"]
[Result "1-0"]
[WhiteElo "2789"]
[BlackElo "2943"]
[TimeControl "180+1"]
[EndTime "15:05:21 PST"]
[Termination "saikrishnaReturns won by resignation"]

1. Nf3 {[%clk 0:03:00.9]} 1... b6 {[%clk 0:02:58.1]} 2. g3 {[%clk 0:03:01.1]}
2... Bb7 {[%clk 0:02:57.3]} 3. Bg2 {[%clk 0:03:02]} 3... e5 {[%clk 0:02:55.2]}
4. d3 {[%clk 0:02:48.6]} 4... Bd6 {[%clk 0:02:54.7]} 5. O-O {[%clk 0:02:45.4]}
5... Nc6 {[%clk 0:02:53.7]} 6. Nbd2 {[%clk 0:02:44.2]} 6... Nf6 {[%clk
0:02:52.7]} 7. e4 {[%clk 0:02:41.4]} 7... Qe7 {[%clk 0:02:51.7]} 8. Nh4 {[%clk
0:02:41.2]} 8... Bc5 {[%clk 0:02:48]} 9. Nf5 {[%clk 0:02:31.2]} 9... Qf8 {[%clk
0:02:48.6]} 10. Nb3 {[%clk 0:02:24.5]} 10... h6 {[%clk 0:02:45.5]} 11. Nxc5
{[%clk 0:02:18.9]} 11... bxc5 {[%clk 0:02:46.4]} 12. c3 {[%clk 0:02:18.9]} 12...
g6 {[%clk 0:02:47]} 13. Ne3 {[%clk 0:02:13]} 13... h5 {[%clk 0:02:43.7]} 14. h4
{[%clk 0:02:11]} 14... Qd6 {[%clk 0:02:39.5]} 15. f4 {[%clk 0:01:57.3]} 15...
Ba6 {[%clk 0:02:38]} 16. Nd5 {[%clk 0:01:29.7]} 16... Ng4 {[%clk 0:02:26.1]} 17.
Bf3 {[%clk 0:01:19.8]} 17... O-O-O {[%clk 0:02:19.1]} 18. Qa4 {[%clk 0:01:08.3]}
18... Bxd3 {[%clk 0:02:08.4]} 19. Rd1 {[%clk 0:01:07.2]} 19... c4 {[%clk
0:02:08.2]} 20. b4 {[%clk 0:00:51.2]} 20... Kb7 {[%clk 0:01:53.2]} 21. Ba3
{[%clk 0:00:41.4]} 21... Nb8 {[%clk 0:01:01.1]} 22. b5 {[%clk 0:00:40.4]} 22...
c5 {[%clk 0:01:01.8]} 23. bxc6+ {[%clk 0:00:36.6]} 23... Qxc6 {[%clk 0:01:02.2]}
24. Rab1+ {[%clk 0:00:34.9]} 24... Bxb1 {[%clk 0:01:01.9]} 25. Rxb1+ {[%clk
0:00:35.8]} 1-0

[Event "Late-Titled-Tuesday-Blitz-February-13-2024"]
[Site "Chess.com"]
[Date "2024.02.13"]
[Round "6"]
[White "Doudou2015"]
[Black "Cristi_Coca"]
[Result "0-1"]
[WhiteElo "2187"]
[BlackElo "2374"]
[TimeControl "180+1"]
[EndTime "15:05:25 PST"]
[Termination "Cristi_Coca won on time"]

1. b3 {[%clk 0:03:00.9]} 1... a5 {[%clk 0:02:57.5]} 2. a3 {[%clk 0:02:59.8]}
2... Nf6 {[%clk 0:02:53.6]} 3. Bb2 {[%clk 0:02:59.9]} 3... e6 {[%clk 0:02:49.7]}
4. e3 {[%clk 0:03:00.4]} 4... d5 {[%clk 0:02:47.5]} 5. f4 {[%clk 0:03:00.7]}
5... Be7 {[%clk 0:02:44.4]} 6. Nf3 {[%clk 0:03:00.8]} 6... a4 {[%clk 0:02:42.7]}
7. b4 {[%clk 0:02:59.6]} 7... c5 {[%clk 0:02:43.3]} 8. bxc5 {[%clk 0:02:47.6]}
8... Bxc5 {[%clk 0:02:44.2]} 9. Bd3 {[%clk 0:02:43.9]} 9... Nc6 {[%clk
0:02:40.1]} 10. Nc3 {[%clk 0:02:43.4]} 10... d4 {[%clk 0:02:31.9]} 11. exd4
{[%clk 0:02:43.1]} 11... Nxd4 {[%clk 0:02:32.2]} 12. Nb5 {[%clk 0:02:32.9]}
12... Nxb5 {[%clk 0:02:29.3]} 13. Bxb5+ {[%clk 0:02:32]} 13... Bd7 {[%clk
0:02:30]} 14. Bxd7+ {[%clk 0:02:22.6]} 14... Qxd7 {[%clk 0:02:30.9]} 15. Bxf6
{[%clk 0:02:21.4]} 15... gxf6 {[%clk 0:02:29.9]} 16. d4 {[%clk 0:02:21.5]} 16...
Bd6 {[%clk 0:02:18.6]} 17. g3 {[%clk 0:02:14.3]} 17... Qb5 {[%clk 0:02:15.6]}
18. Rb1 {[%clk 0:02:03.6]} 18... Qa5+ {[%clk 0:02:12.8]} 19. Kf2 {[%clk
0:01:23.7]} 19... Bxa3 {[%clk 0:02:07.7]} 20. Rxb7 {[%clk 0:01:22.6]} 20... Bd6
{[%clk 0:02:02.2]} 21. c4 {[%clk 0:00:43.4]} 21... Qa6 {[%clk 0:01:42]} 22. Qb1
{[%clk 0:00:22.1]} 22... Qxc4 {[%clk 0:01:39.7]} 23. Rc1 {[%clk 0:00:19.7]}
23... Qd5 {[%clk 0:01:39.2]} 24. Rc5 {[%clk 0:00:10.4]} 24... Bxc5 {[%clk
0:01:32]} 25. Qb5+ {[%clk 0:00:10.5]} 25... Kf8 {[%clk 0:01:27.8]} 26. dxc5
{[%clk 0:00:03]} 26... Kg7 {[%clk 0:01:26.3]} 0-1

[Event "Late-Titled-Tuesday-Blitz-February-13-2024"]
[Site "Chess.com"]
[Date "2024.02.13"]
[Round "6"]
[White "MusicCityMaster"]
[Black "OneTrickPony_82"]
[Result "1-0"]
[WhiteElo "2469"]
[BlackElo "2565"]
[TimeControl "180+1"]
[EndTime "15:05:33 PST"]
[Termination "MusicCityMaster won by checkmate"]

1. d4 {[%clk 0:03:00.9]} 1... Nf6 {[%clk 0:02:59.6]} 2. c4 {[%clk 0:03:00.3]}
2... e6 {[%clk 0:02:59.7]} 3. Nf3 {[%clk 0:03:00.9]} 3... d5 {[%clk 0:02:59.7]}
4. Nc3 {[%clk 0:02:59]} 4... c5 {[%clk 0:03:00.1]} 5. e3 {[%clk 0:02:57.9]} 5...
a6 {[%clk 0:02:59.9]} 6. Bd3 {[%clk 0:02:56.9]} 6... dxc4 {[%clk 0:03:00]} 7.
Bxc4 {[%clk 0:02:57.8]} 7... b5 {[%clk 0:03:00.1]} 8. Bd3 {[%clk 0:02:55.2]}
8... Bb7 {[%clk 0:03:00.2]} 9. dxc5 {[%clk 0:02:53.8]} 9... Bxc5 {[%clk
0:02:56.4]} 10. Qe2 {[%clk 0:02:50.2]} 10... O-O {[%clk 0:02:54.8]} 11. O-O
{[%clk 0:02:48.6]} 11... Nbd7 {[%clk 0:02:54.5]} 12. b3 {[%clk 0:02:46.8]} 12...
Qc7 {[%clk 0:02:53.7]} 13. Bb2 {[%clk 0:02:47.1]} 13... Ng4 {[%clk 0:02:50.7]}
14. Ne4 {[%clk 0:02:25.3]} 14... f5 {[%clk 0:02:26]} 15. Ng3 {[%clk 0:02:17.3]}
15... Rad8 {[%clk 0:02:20.5]} 16. Rac1 {[%clk 0:02:16.4]} 16... Qb8 {[%clk
0:02:09.1]} 17. h3 {[%clk 0:02:13.8]} 17... Nxe3 {[%clk 0:01:55.7]} 18. Rfe1
{[%clk 0:01:39.3]} 18... Rfe8 {[%clk 0:01:55.6]} 19. Nh5 {[%clk 0:01:31.2]}
19... e5 {[%clk 0:01:39.4]} 20. fxe3 {[%clk 0:01:24.5]} 20... g6 {[%clk
0:01:38.3]} 21. Ng5 {[%clk 0:01:17.5]} 21... e4 {[%clk 0:01:28.9]} 22. Bb1
{[%clk 0:01:10.3]} 22... Bb6 {[%clk 0:01:16]} 23. Red1 {[%clk 0:01:02.3]} 23...
Qa7 {[%clk 0:00:52.5]} 24. Rxd7 {[%clk 0:00:53.8]} 24... Bxe3+ {[%clk
0:00:50.3]} 25. Kh1 {[%clk 0:00:52.5]} 25... gxh5 {[%clk 0:00:33.3]} 26. Rg7+
{[%clk 0:00:45]} 26... Kf8 {[%clk 0:00:31.4]} 27. Nxh7# {[%clk 0:00:45.1]} 1-0

[Event "Late-Titled-Tuesday-Blitz-February-13-2024"]
[Site "Chess.com"]
[Date "2024.02.13"]
[Round "6"]
[White "akanga001"]
[Black "gunslinger222"]
[Result "1/2-1/2"]
[WhiteElo "2024"]
[BlackElo "2249"]
[TimeControl "180+1"]
[EndTime "15:05:36 PST"]
[Termination "Game drawn by repetition"]

1. d4 {[%clk 0:02:51.6]} 1... d5 {[%clk 0:03:00.9]} 2. c4 {[%clk 0:02:49.7]}
2... e5 {[%clk 0:03:01.2]} 3. dxe5 {[%clk 0:02:48.1]} 3... d4 {[%clk 0:03:01.3]}
4. Nf3 {[%clk 0:02:48.6]} 4... Bb4+ {[%clk 0:03:01.5]} 5. Bd2 {[%clk 0:02:46.3]}
5... Nc6 {[%clk 0:02:58.3]} 6. a3 {[%clk 0:02:46.4]} 6... Bxd2+ {[%clk
0:02:58.1]} 7. Nbxd2 {[%clk 0:02:42.8]} 7... Nge7 {[%clk 0:02:58]} 8. g3 {[%clk
0:02:40.8]} 8... Ng6 {[%clk 0:02:58.4]} 9. Bg2 {[%clk 0:02:40.1]} 9... Ngxe5
{[%clk 0:02:58.1]} 10. O-O {[%clk 0:02:39]} 10... h5 {[%clk 0:02:57.8]} 11. h3
{[%clk 0:02:35.3]} 11... h4 {[%clk 0:02:52.6]} 12. g4 {[%clk 0:02:33.4]} 12...
Nxg4 {[%clk 0:02:47.2]} 13. hxg4 {[%clk 0:02:31.7]} 13... h3 {[%clk 0:02:47.6]}
14. Bh1 {[%clk 0:02:21.5]} 14... h2+ {[%clk 0:02:48]} 15. Nxh2 {[%clk
0:02:20.7]} 15... Qh4 {[%clk 0:02:47.7]} 16. Ndf3 {[%clk 0:02:20.3]} 16... Qh3
{[%clk 0:02:44.2]} 17. Qd3 {[%clk 0:01:56.6]} 17... f5 {[%clk 0:02:28.4]} 18.
Rfe1 {[%clk 0:01:20.8]} 18... Ne5 {[%clk 0:02:28]} 19. Qxd4 {[%clk 0:01:11.6]}
19... Nxg4 {[%clk 0:02:06]} 20. Qf4 {[%clk 0:00:56.5]} 20... Nxh2 {[%clk
0:01:42.5]} 21. Nxh2 {[%clk 0:00:50.7]} 21... g5 {[%clk 0:01:42.1]} 22. Qe5+
{[%clk 0:00:49.3]} 22... Kf7 {[%clk 0:01:38.5]} 23. Bd5+ {[%clk 0:00:47.2]}
23... Kg6 {[%clk 0:01:37.6]} 24. Qxc7 {[%clk 0:00:36.5]} 24... f4 {[%clk
0:01:25.1]} 25. Qf7+ {[%clk 0:00:29.1]} 25... Kh6 {[%clk 0:01:24.1]} 26. Qf6+
{[%clk 0:00:23]} 26... Kh7 {[%clk 0:01:23.4]} 27. Be4+ {[%clk 0:00:18.3]} 27...
Kg8 {[%clk 0:01:23.7]} 28. Bd5+ {[%clk 0:00:14.3]} 28... Kh7 {[%clk 0:01:23.8]}
29. Be4+ {[%clk 0:00:14.4]} 29... Kg8 {[%clk 0:01:24.1]} 30. Bd5+ {[%clk
0:00:05.1]} 30... Kh7 {[%clk 0:01:24.2]} 1/2-1/2

[Event "Late-Titled-Tuesday-Blitz-February-13-2024"]
[Site "Chess.com"]
[Date "2024.02.13"]
[Round "6"]
[White "BardArtem"]
[Black "zverr1"]
[Result "1-0"]
[WhiteElo "2766"]
[BlackElo "2558"]
[TimeControl "180+1"]
[EndTime "15:05:39 PST"]
[Termination "BardArtem won by checkmate"]

1. e4 {[%clk 0:02:58.1]} 1... c5 {[%clk 0:02:59.6]} 2. c3 {[%clk 0:02:54.8]}
2... g6 {[%clk 0:02:59.1]} 3. d4 {[%clk 0:02:50.3]} 3... cxd4 {[%clk 0:02:59.1]}
4. cxd4 {[%clk 0:02:51.2]} 4... d5 {[%clk 0:02:59.1]} 5. exd5 {[%clk 0:02:52.1]}
5... Nf6 {[%clk 0:02:59]} 6. Bb5+ {[%clk 0:02:51]} 6... Bd7 {[%clk 0:02:49.8]}
7. Bc4 {[%clk 0:02:50.3]} 7... b5 {[%clk 0:02:43.2]} 8. Bb3 {[%clk 0:02:50]}
8... a5 {[%clk 0:02:43.1]} 9. a3 {[%clk 0:02:50.2]} 9... Bc8 {[%clk 0:02:31.4]}
10. Nc3 {[%clk 0:02:34.7]} 10... a4 {[%clk 0:02:21.8]} 11. Ba2 {[%clk
0:02:24.6]} 11... Qd7 {[%clk 0:02:19.4]} 12. Nf3 {[%clk 0:02:23]} 12... Bb7
{[%clk 0:02:01.7]} 13. O-O {[%clk 0:02:15]} 13... Nxd5 {[%clk 0:01:32.5]} 14.
Ne5 {[%clk 0:02:14.2]} 14... Qd8 {[%clk 0:01:29.3]} 15. Qf3 {[%clk 0:02:14.2]}
15... f6 {[%clk 0:01:15.5]} 16. Bxd5 {[%clk 0:02:02.6]} 16... Bxd5 {[%clk
0:01:14]} 17. Qxd5 {[%clk 0:02:03.5]} 17... Qxd5 {[%clk 0:00:41.9]} 18. Nxd5
{[%clk 0:02:04.4]} 18... fxe5 {[%clk 0:00:42.7]} 19. Nc7+ {[%clk 0:01:44.7]}
19... Kd7 {[%clk 0:00:42.5]} 20. Nxa8 {[%clk 0:01:45.6]} 20... Kc6 {[%clk
0:00:43.3]} 21. dxe5 {[%clk 0:01:36.9]} 21... Kb7 {[%clk 0:00:42]} 22. Rd1
{[%clk 0:01:37]} 22... Bg7 {[%clk 0:00:38]} 23. Rd5 {[%clk 0:01:34]} 23... Kxa8
{[%clk 0:00:32.1]} 24. Rxb5 {[%clk 0:01:30.5]} 24... Nc6 {[%clk 0:00:32.8]} 25.
Be3 {[%clk 0:01:24]} 25... Rd8 {[%clk 0:00:09.1]} 26. Rc1 {[%clk 0:01:20.4]}
26... Nxe5 {[%clk 0:00:09.1]} 27. Kf1 {[%clk 0:01:18]} 27... Rb8 {[%clk
0:00:03.6]} 28. Ra5+ {[%clk 0:01:15.6]} 28... Kb7 {[%clk 0:00:03.8]} 29. Ra7#
{[%clk 0:01:16.5]} 1-0

[Event "Late-Titled-Tuesday-Blitz-February-13-2024"]
[Site "Chess.com"]
[Date "2024.02.13"]
[Round "6"]
[White "Slovak_fighter2000"]
[Black "hmatyi07"]
[Result "0-1"]
[WhiteElo "2483"]
[BlackElo "2270"]
[TimeControl "180+1"]
[EndTime "15:05:41 PST"]
[Termination "hmatyi07 won on time"]

1. e4 {[%clk 0:02:59.6]} 1... c6 {[%clk 0:02:58.1]} 2. d4 {[%clk 0:02:58.9]}
2... d5 {[%clk 0:02:58]} 3. exd5 {[%clk 0:02:57.7]} 3... cxd5 {[%clk 0:02:58.1]}
4. c4 {[%clk 0:02:58.6]} 4... Nf6 {[%clk 0:02:57.7]} 5. Nc3 {[%clk 0:02:58.2]}
5... g6 {[%clk 0:02:56.7]} 6. cxd5 {[%clk 0:02:57.1]} 6... Bg7 {[%clk
0:02:56.7]} 7. Qb3 {[%clk 0:02:55.6]} 7... O-O {[%clk 0:02:56.6]} 8. Nf3 {[%clk
0:02:53.9]} 8... Na6 {[%clk 0:02:54]} 9. Bxa6 {[%clk 0:02:48]} 9... bxa6 {[%clk
0:02:53.6]} 10. O-O {[%clk 0:02:48.9]} 10... a5 {[%clk 0:02:42.7]} 11. Bf4
{[%clk 0:02:44]} 11... a4 {[%clk 0:02:30.1]} 12. Qxa4 {[%clk 0:02:40.2]} 12...
Nxd5 {[%clk 0:02:26.4]} 13. Be5 {[%clk 0:02:28.8]} 13... Bb7 {[%clk 0:02:00.8]}
14. Bxg7 {[%clk 0:02:25.1]} 14... Kxg7 {[%clk 0:01:52.7]} 15. Qb3 {[%clk
0:02:13.6]} 15... Rb8 {[%clk 0:01:46.9]} 16. Ne5 {[%clk 0:01:58.6]} 16... Nf4
{[%clk 0:01:38.7]} 17. f3 {[%clk 0:01:44.5]} 17... Qxd4+ {[%clk 0:01:34.2]} 18.
Kh1 {[%clk 0:01:44.1]} 18... Qxe5 {[%clk 0:01:34]} 19. Rae1 {[%clk 0:01:44.2]}
19... Qg5 {[%clk 0:01:19.1]} 20. Qc2 {[%clk 0:01:43.1]} 20... Rfd8 {[%clk
0:01:09.6]} 21. Qf2 {[%clk 0:01:37.7]} 21... Nd3 {[%clk 0:01:07.3]} 0-1

[Event "Late-Titled-Tuesday-Blitz-February-13-2024"]
[Site "Chess.com"]
[Date "2024.02.13"]
[Round "6"]
[White "Semetey"]
[Black "Binary010"]
[Result "0-1"]
[WhiteElo "2619"]
[BlackElo "2877"]
[TimeControl "180+1"]
[EndTime "15:05:44 PST"]
[Termination "Binary010 won on time"]

1. e4 {[%clk 0:02:55]} 1... c5 {[%clk 0:02:58.4]} 2. Nf3 {[%clk 0:02:48.9]} 2...
d6 {[%clk 0:02:58.8]} 3. Bc4 {[%clk 0:02:48.2]} 3... Nf6 {[%clk 0:02:58.7]} 4.
Nc3 {[%clk 0:02:45.3]} 4... e6 {[%clk 0:02:54.8]} 5. O-O {[%clk 0:02:43.9]} 5...
a6 {[%clk 0:02:50.6]} 6. a4 {[%clk 0:02:43]} 6... Be7 {[%clk 0:02:49.9]} 7. d4
{[%clk 0:02:41]} 7... cxd4 {[%clk 0:02:50]} 8. Nxd4 {[%clk 0:02:39.1]} 8... O-O
{[%clk 0:02:50.2]} 9. Bb3 {[%clk 0:02:26.1]} 9... Nc6 {[%clk 0:02:46.5]} 10. Be3
{[%clk 0:02:24.8]} 10... Bd7 {[%clk 0:02:41.9]} 11. h3 {[%clk 0:02:22.8]} 11...
Rc8 {[%clk 0:02:40]} 12. f4 {[%clk 0:02:22.6]} 12... Qa5 {[%clk 0:02:01.3]} 13.
Qf3 {[%clk 0:02:08.9]} 13... Nxd4 {[%clk 0:01:38.9]} 14. Bxd4 {[%clk 0:02:07.8]}
14... e5 {[%clk 0:01:39.6]} 15. Be3 {[%clk 0:02:01]} 15... Rxc3 {[%clk
0:01:37.2]} 16. bxc3 {[%clk 0:02:00.1]} 16... Bc6 {[%clk 0:01:37.3]} 17. fxe5
{[%clk 0:01:53.2]} 17... dxe5 {[%clk 0:01:36.9]} 18. Bg5 {[%clk 0:01:51.2]}
18... Bxe4 {[%clk 0:01:29.7]} 19. Qg3 {[%clk 0:01:45.4]} 19... Bg6 {[%clk
0:01:21.5]} 20. Rae1 {[%clk 0:01:41.3]} 20... e4 {[%clk 0:01:06]} 21. Kh1 {[%clk
0:01:31.5]} 21... Nh5 {[%clk 0:01:01.3]} 22. Qg4 {[%clk 0:01:20.3]} 22... Qxg5
{[%clk 0:00:58.7]} 0-1

[Event "Late-Titled-Tuesday-Blitz-February-13-2024"]
[Site "Chess.com"]
[Date "2024.02.13"]
[Round "6"]
[White "Doomfist26"]
[Black "mitrabhaa"]
[Result "1-0"]
[WhiteElo "2656"]
[BlackElo "2883"]
[TimeControl "180+1"]
[EndTime "15:05:45 PST"]
[Termination "Doomfist26 won by resignation"]

1. e4 {[%clk 0:03:00.9]} 1... c6 {[%clk 0:03:00.1]} 2. Nc3 {[%clk 0:03:00.5]}
2... d5 {[%clk 0:03:00.6]} 3. Qf3 {[%clk 0:02:59.4]} 3... d4 {[%clk 0:02:56.6]}
4. Bc4 {[%clk 0:02:58.8]} 4... e6 {[%clk 0:02:56.8]} 5. Nce2 {[%clk 0:02:58.8]}
5... c5 {[%clk 0:02:56.9]} 6. d3 {[%clk 0:02:58.6]} 6... Nc6 {[%clk 0:02:57]} 7.
Bf4 {[%clk 0:02:53.7]} 7... Bd6 {[%clk 0:02:54.2]} 8. Qg3 {[%clk 0:02:47.9]}
8... Bxf4 {[%clk 0:02:52.6]} 9. Nxf4 {[%clk 0:02:47.9]} 9... Qf6 {[%clk
0:02:36.2]} 10. Nf3 {[%clk 0:02:17.8]} 10... h5 {[%clk 0:02:31.3]} 11. h4 {[%clk
0:02:02.6]} 11... Nge7 {[%clk 0:02:29.8]} 12. O-O-O {[%clk 0:02:01.5]} 12... Bd7
{[%clk 0:02:24.7]} 13. Kb1 {[%clk 0:01:59.7]} 13... Ne5 {[%clk 0:02:17.4]} 14.
Nxe6 {[%clk 0:01:50.1]} 14... Nxf3 {[%clk 0:01:40.3]} 15. Nc7+ {[%clk 0:01:46]}
15... Kd8 {[%clk 0:01:40.4]} 16. gxf3 {[%clk 0:01:27.9]} 16... Rc8 {[%clk
0:01:39.5]} 17. Nd5 {[%clk 0:01:18.9]} 17... Nxd5 {[%clk 0:01:39.2]} 18. Bxd5
{[%clk 0:01:19.6]} 18... Bc6 {[%clk 0:01:38.7]} 19. Rhg1 {[%clk 0:01:09.2]}
19... Bxd5 {[%clk 0:01:35.6]} 20. exd5 {[%clk 0:01:09.8]} 20... g6 {[%clk
0:01:33.9]} 21. Rde1 {[%clk 0:01:09.3]} 21... Kd7 {[%clk 0:01:25.4]} 22. Re4
{[%clk 0:01:09.3]} 22... Rhe8 {[%clk 0:01:19.9]} 23. Rge1 {[%clk 0:01:09.3]}
23... Qf5 {[%clk 0:00:54.4]} 24. Rxe8 {[%clk 0:01:06.5]} 24... Rxe8 {[%clk
0:00:54.1]} 25. Rxe8 {[%clk 0:01:07.1]} 25... Kxe8 {[%clk 0:00:54.7]} 26. Qb8+
{[%clk 0:01:07.4]} 26... Ke7 {[%clk 0:00:55.4]} 27. d6+ {[%clk 0:00:53.6]} 27...
Ke6 {[%clk 0:00:51.6]} 28. Qc7 {[%clk 0:00:52.8]} 28... Qxf3 {[%clk 0:00:29.7]}
29. Qe7+ {[%clk 0:00:51.6]} 29... Kd5 {[%clk 0:00:30.3]} 30. Qxb7+ {[%clk
0:00:51.7]} 1-0